fUSD/lending_fUSD_20250226
["ID","MTS","AMOUNT","RATE_DAILY","PERIOD"]
[354675208,1740612639918,-89734.34496891,0.00015,2]
[354675210,1740612639927,-50486.08010192,0.00015,2]
[354675213,1740612639939,-1689.86349011,0.00015,2]
[354675222,1740612640018,-2258482.20046603,0.00015,2]
[354675224,1740612640028,-155.43417919,0.00015,2]
[354675226,1740612640038,-150.0,0.0001639,2]
[354675228,1740612640047,-150.0,0.00016499,2]
[354675230,1740612640056,-20904.08126018,0.0001688,2]
[354675232,1740612640065,-250.0,0.00018582,2]
[354675234,1740612640074,-24357.46355971,0.000189,2]
[354675236,1740612640083,-38295.16091719,0.00019,2]
[354675238,1740612640092,-514.0,0.0001997,2]
[354675240,1740612640100,-219.17432762,0.00020239,2]
[354675242,1740612640109,-150.99999844,0.000205,2]
[354675244,1740612640118,-450.0,0.00021511,2]
[354675246,1740612640129,-170.71,0.00021918,2]
[354675248,1740612640138,-204.47806945,0.000235,3]
[354675250,1740612640147,-204.47806945,0.000235,3]
[354675252,1740612640156,-204.47806945,0.000235,3]
[354675253,1740612640166,-204.47806945,0.000235,3]
[354675256,1740612640175,-204.47806945,0.00024378,3]
[354675257,1740612640184,-38868.80968932,0.00025,2]
[354675259,1740612640194,-150.0,0.0002599,2]
[354675261,1740612640202,-333.53981974,0.0002599,2]
[354675263,1740612640212,-9999.999999,0.0002599,2]
[354675265,1740612640221,-204.47806945,0.00026248,4]
[354675267,1740612640230,-153.55,0.00026849,2]
[354675269,1740612640239,-153.48,0.00026849,2]
[354675271,1740612640248,-450.0,0.00027486,2]
[354675273,1740612640257,-204.47806945,0.00028117,5]
[354675275,1740612640266,-14693.56,0.00028203,2]
[354675277,1740612640275,-28459.88,0.00028203,2]
[354675279,1740612640284,-1235.46,0.00028203,2]
[354675281,1740612640293,-204.47806945,0.00029987,5]
[354675283,1740612640303,-250.0,0.00030324,2]
[354675285,1740612640312,-174.64,0.00030504,2]
[354675287,1740612640321,-1238.92,0.0003062,2]
[354675289,1740612640330,-150.99,0.0003062,2]
[354675291,1740612640339,-237.38,0.0003062,2]
[354675293,1740612640347,-914.56,0.0003062,2]
[354675295,1740612640357,-159.32,0.00030741,2]
[354675297,1740612640367,-153.24,0.00031074,2]
[354675299,1740612640377,-204.47806945,0.00031857,6]
[354675301,1740612640386,-150.0,0.00032195,7]
[354675303,1740612640395,-200.0,0.00032219,2]
[354675305,1740612640405,-153.24,0.00032225,2]
[354675307,1740612640414,-151.09,0.00032234,2]
[354675309,1740612640423,-450.0,0.00032294,2]
[354675311,1740612640432,-448.0,0.00032424,2]
[354675313,1740612640441,-465.83,0.00033016,2]
[354675315,1740612640451,-153.24,0.00033376,2]
[354675317,1740612640460,-204.47806945,0.00033726,6]
[354675319,1740612640469,-151.09,0.00034279,2]
[354675321,1740612640478,-153.24,0.00034527,2]
[354675323,1740612640487,-1000.0,0.00034589,2]
[354675324,1740612640496,-11558.24,0.00034687,2]
[354675326,1740612640505,-2639.56,0.0003488,2]
[354675328,1740612640513,-23900.0,0.00034903,2]
[354675330,1740612640522,-465.83,0.0003528,2]
[354675332,1740612640531,-1000.0,0.00035415,2]
[354675334,1740612640540,-2500.0,0.00035415,2]
[354675336,1740612640549,-1282.524,0.00035515,42]
[354675338,1740612640558,-165.40605854,0.00035515,42]
[354675340,1740612640567,-204.47806945,0.00035596,7]
[354675342,1740612640576,-205.076324,0.00035616,14]
[354675344,1740612640585,-157.779118,0.00035616,14]
[354675346,1740612640594,-500.0,0.00035616,14]
[354675348,1740612640603,-500.0,0.00035616,14]
[354675350,1740612640613,-500.0,0.00035616,14]
[354675352,1740612640622,-500.0,0.00035616,14]
[354675354,1740612640632,-500.0,0.00035616,14]
[354675356,1740612640643,-170.71,0.00035616,2]
[354675358,1740612640653,-5390.569,0.00035678,2]
[354675360,1740612640662,-570.0,0.00035778,2]
[354675362,1740612640672,-784.0,0.00035778,2]
[354675364,1740612640685,-540.0,0.00035778,2]
[354675366,1740612640694,-1267.0,0.00035778,2]
[354675368,1740612640703,-1425.0,0.00035778,2]
[354675370,1740612640713,-909.0,0.00035778,2]
[354675372,1740612640723,-4034.0,0.00035778,2]
[354675374,1740612640733,-3922.0,0.00035778,2]
[354675376,1740612640742,-2028.0,0.00035778,2]
[354675378,1740612640754,-1010.0,0.00035778,2]
[354675380,1740612640764,-1275.0,0.00035778,2]
[354675382,1740612640773,-150.0,0.00035778,2]
[354675384,1740612640782,-157.779118,0.0003589,14]
[354675386,1740612640791,-500.0,0.0003589,14]
[354675388,1740612640801,-500.0,0.0003589,14]
[354675390,1740612640810,-500.0,0.0003589,14]
[354675392,1740612640819,-500.0,0.00036164,14]
[354675394,1740612640828,-500.0,0.00036164,14]
[354675396,1740612640837,-500.0,0.00036164,14]
[354675398,1740612640847,-151.09,0.00036324,2]
[354675400,1740612640856,-157.779118,0.00036438,14]
[354675402,1740612640865,-500.0,0.00036438,14]
[354675404,1740612640875,-500.0,0.00036438,14]
[354675406,1740612640884,-500.0,0.00036438,14]
[354675408,1740612640893,-921.68746547,0.00036612,2]
[354675410,1740612640903,-7525.04038756,0.00036612,2]
[354675412,1740612640912,-16183.48041921,0.00036711,2]
[354675414,1740612640921,-5136.24,0.00036712,2]
[354675416,1740612640930,-5136.24,0.00036712,2]
[354675418,1740612640940,-5136.24,0.00036712,2]
[354675420,1740612640951,-5136.24,0.00036712,2]
[354675422,1740612640960,-5136.24,0.00036712,2]
[354675423,1740612640969,-5136.24,0.00036712,2]
[354675425,1740612640978,-5136.24,0.00036712,2]
[354675427,1740612640987,-5136.24,0.00036712,2]
[354675429,1740612640996,-5136.24,0.00036712,2]
[354675431,1740612641005,-5136.24,0.00036712,2]
[354675433,1740612641014,-5136.24,0.00036712,2]
[354675435,1740612641024,-5136.24,0.00036712,2]
[354675437,1740612641032,-5136.24,0.00036712,2]
[354675439,1740612641041,-5136.24,0.00036712,2]
[354675441,1740612641051,-5136.24,0.00036712,2]
[354675443,1740612641060,-5136.24,0.00036712,2]
[354675445,1740612641069,-5136.24,0.00036712,2]
[354675447,1740612641078,-5136.24,0.00036712,2]
[354675449,1740612641088,-5136.24,0.00036712,2]
[354675451,1740612641097,-5136.34995646,0.00036712,2]
[354675453,1740612641106,-500.0,0.00036712,14]
[354675455,1740612641115,-500.0,0.00036712,14]
[354675457,1740612641126,-500.0,0.00036712,14]
[354675459,1740612641136,-153.48,0.00036862,2]
[354675461,1740612641145,-500.0,0.00036986,14]
[354675463,1740612641155,-500.0,0.00036986,14]
[354675465,1740612641164,-1036.75366397,0.00037061,9]
[354675467,1740612641173,-153.82786005,0.000372,103]
[354675469,1740612641183,-500.0,0.0003726,14]
[354675471,1740612641192,-500.0,0.0003726,14]
[354675473,1740612641201,-500.0,0.00037434,2]
[354675475,1740612641211,-204.47806945,0.00037465,7]
[354675477,1740612641220,-500.0,0.00037534,14]
[354675479,1740612641230,-500.0,0.00037534,14]
[354675481,1740612641239,-465.83,0.00037544,2]
[354675483,1740612641249,-500.0,0.00037808,14]
[354675485,1740612641259,-497.26,0.00037808,14]
[354675487,1740612641268,-500.0,0.00038082,14]
[354675489,1740612641277,-375.0,0.000381,2]
[354675491,1740612641287,-482.0,0.000381,2]
[354675493,1740612641296,-921.68746543,0.00038313,2]
[354675495,1740612641306,-7525.04038748,0.00038313,2]
[354675497,1740612641315,-500.0,0.00038356,14]
[354675499,1740612641325,-151.09,0.00038369,2]
[354675501,1740612641334,-200.0,0.00038529,120]
[354675503,1740612641343,-500.0,0.0003863,14]
[354675505,1740612641352,-5550.0,0.000387,5]
[354675507,1740612641361,-500.0,0.00038777,14]
[354675509,1740612641370,-570.0,0.00038778,2]
[354675511,1740612641381,-784.0,0.00038778,2]
[354675513,1740612641390,-514.273,0.00038778,2]
[354675515,1740612641399,-1267.0,0.00038778,2]
[354675517,1740612641407,-926.226,0.00038778,2]
[354675519,1740612641417,-909.0,0.00038778,2]
[354675521,1740612641426,-4034.0,0.00038778,2]
[354675523,1740612641435,-3922.0,0.00038778,2]
[354675525,1740612641444,-2028.0,0.00038778,2]
[354675527,1740612641453,-1010.0,0.00038778,2]
[354675529,1740612641463,-1275.0,0.00038778,2]
[354675531,1740612641472,-500.0,0.00038904,14]
[354675533,1740612641480,-1000.0,0.00038912,2]
[354675535,1740612641489,-499.0,0.00039051,14]
[354675537,1740612641499,-500.0,0.00039178,14]
[354675539,1740612641508,-358.888404,0.00039266,120]
[354675541,1740612641517,-204.47806945,0.00039335,8]
[354675543,1740612641526,-157.779118,0.00039449,14]
[354675545,1740612641535,-574.53566004,0.00039452,14]
[354675546,1740612641544,-150.0,0.00039479,30]
[354675548,1740612641554,-166.18255292,0.00039479,30]
[354675551,1740612641569,-465.83,0.00039808,2]
[354675553,1740612641579,-15590.8451587,0.00039988,2]
[354675555,1740612641588,-205.076324,0.00039997,14]
[354675557,1740612641598,-157.779118,0.00039997,14]
[354675559,1740612641607,-500.0,0.0004,120]
[354675561,1740612641616,-200.0,0.0004,15]
[354675563,1740612641625,-200.0,0.0004,30]
[354675565,1740612641635,-921.68746543,0.00040014,15]
[354675566,1740612641646,-7525.04038748,0.00040014,15]
[354675568,1740612641656,-151.09,0.00040414,2]
[354675570,1740612641665,-153.55,0.00040616,2]
[354675572,1740612641675,-157.779118,0.00040642,14]
[354675574,1740612641684,-2495.0,0.0004099,5]
[354675577,1740612641698,-500.0,0.00040999,120]
[354675579,1740612641706,-500.0,0.00041095,15]
[354675581,1740612641716,-500.0,0.00041095,15]
[354675583,1740612641726,-500.0,0.00041095,15]
[354675585,1740612641734,-500.0,0.00041095,15]
[354675587,1740612641744,-500.0,0.00041095,15]
[354675589,1740612641753,-500.0,0.00041095,15]
[354675590,1740612641762,-500.0,0.00041095,15]
[354675592,1740612641772,-500.0,0.00041095,15]
[354675594,1740612641781,-500.0,0.00041095,15]
[354675596,1740612641790,-500.0,0.00041095,15]
[354675598,1740612641799,-500.0,0.00041095,15]
[354675600,1740612641809,-395.45332615,0.00041095,15]
[354675602,1740612641818,-157.779118,0.00041095,14]
[354675604,1740612641827,-1500.0,0.00041096,120]
[354675606,1740612641836,-204.47806945,0.00041204,9]
[354675608,1740612641845,-1036.75366383,0.0004155,13]
[354675610,1740612641856,-500.0,0.00041582,120]
[354675612,1740612641865,-157.779118,0.00041643,14]
[354675614,1740612641874,-921.68746543,0.00041715,15]
[354675616,1740612641884,-7525.04038748,0.00041715,15]
[354675618,1740612641893,-500.0,0.00041777,14]
[354675620,1740612641903,-567.0,0.00041778,2]
[354675622,1740612641912,-367.659,0.00041778,2]
[354675624,1740612641922,-1259.0,0.00041778,2]
[354675626,1740612641932,-783.812,0.00041778,2]
[354675628,1740612641941,-4034.0,0.00041778,2]
[354675630,1740612641951,-3922.0,0.00041778,2]
[354675632,1740612641960,-918.001,0.00041778,2]
[354675649,1740612642102,-605.67,0.00041778,2]
[354675651,1740612642112,-423.476,0.00041778,2]
[354675653,1740612642121,-196.06,0.00042,60]
[354675655,1740612642132,-465.83,0.00042072,2]
[354675657,1740612642141,-151.09,0.00042459,2]
[354675659,1740612642151,-317.5841,0.00042481,7]
[354675661,1740612642160,-150.0,0.00042666,30]
[354675663,1740612642169,-230.26462597,0.00042666,30]
[354675665,1740612642178,-150.0,0.00042666,30]
[354675667,1740612642187,-1149.72185965,0.00042666,30]
[354675669,1740612642196,-150.0,0.0004268,30]
[354675671,1740612642205,-153.32,0.000427,33]
[354675673,1740612642214,-153.32,0.000427,33]
[354675675,1740612642223,-153.32,0.000427,33]
[354675677,1740612642232,-500.0,0.00042732,120]
[354675679,1740612642242,-500.0,0.00042865,120]
[354675681,1740612642251,-200.0,0.00042865,120]
[354675683,1740612642261,-275.03,0.000429,2]
[354675685,1740612642270,-500.0,0.00043024,120]
[354675687,1740612642280,-204.47806945,0.00043074,9]
[354675689,1740612642289,-161.536775,0.000432,90]
[354675691,1740612642298,-1000.0,0.00043236,2]
[354675693,1740612642307,-921.68746543,0.00043416,15]
[354675694,1740612642316,-7525.04038748,0.00043416,15]
[354675696,1740612642326,-155.6551682,0.00044069,4]
[354675698,1740612642335,-1146.85450377,0.000441,10]
[354675700,1740612642344,-465.83,0.00044336,2]
[354675702,1740612642353,-500.0,0.00044465,120]
[354675704,1740612642362,-500.0,0.00044465,120]
[354675706,1740612642371,-500.0,0.00044465,120]
[354675709,1740612642382,-200.0,0.00044465,120]
[354675711,1740612642391,-151.09,0.00044505,2]
[354675715,1740612642401,-150.0,0.00044725,2]
[354675718,1740612642410,-150.0,0.00044726,2]
[354675721,1740612642419,-150.0,0.00044727,2]
[354675723,1740612642428,-150.0,0.00044727,2]
[354675725,1740612642437,-150.0,0.00044727,2]
[354675727,1740612642446,-150.0,0.00044728,2]
[354675729,1740612642457,-150.0,0.00044729,2]
[354675731,1740612642467,-150.0,0.00044738,2]
[354675733,1740612642476,-150.0,0.0004474,2]
[354675735,1740612642485,-150.0,0.00044749,2]
[354675736,1740612642494,-150.0,0.0004475,2]
[354675739,1740612642504,-150.0,0.00044751,2]
[354675741,1740612642514,-150.0,0.00044752,2]
[354675742,1740612642524,-150.0,0.00044756,2]
[354675744,1740612642533,-150.0,0.00044761,2]
[354675746,1740612642543,-150.0,0.00044761,2]
[354675748,1740612642552,-150.0,0.00044762,2]
[354675750,1740612642561,-150.0,0.00044764,2]
[354675752,1740612642571,-150.0,0.00044764,2]
[354675754,1740612642580,-150.0,0.00044765,2]
[354675757,1740612642590,-150.0,0.00044766,2]
[354675760,1740612642599,-150.0,0.0004477,2]
[354675762,1740612642608,-150.0,0.00044772,2]
[354675765,1740612642618,-150.0,0.00044772,2]
[354675768,1740612642628,-150.0,0.00044774,2]
[354675771,1740612642637,-150.0,0.00044774,2]
[354675773,1740612642648,-600.0,0.00044775,6]
[354675776,1740612642658,-150.0,0.00044777,2]
[354675778,1740612642667,-150.0,0.00044777,2]
[354675780,1740612642677,-436.352,0.00044778,2]
[354675782,1740612642690,-3922.0,0.00044778,2]
[354675784,1740612642699,-150.0,0.00044779,2]
[354675787,1740612642709,-159.32,0.00044782,2]
[354675788,1740612642718,-150.0,0.00044784,2]
[354675791,1740612642729,-150.0,0.00044786,2]
[354675793,1740612642739,-150.0,0.00044787,2]
[354675795,1740612642748,-150.0,0.00044796,2]
[354675796,1740612642759,-150.0,0.00044801,2]
[354675799,1740612642768,-150.0,0.00044806,2]
[354675800,1740612642778,-150.0,0.00044808,2]
[354675802,1740612642787,-150.0,0.00044812,2]
[354675805,1740612642796,-150.0,0.00044813,2]
[354675806,1740612642805,-150.0,0.00044816,2]
[354675808,1740612642814,-150.0,0.00044816,2]
[354675810,1740612642823,-150.0,0.00044817,2]
[354675813,1740612642834,-150.0,0.00044823,2]
[354675814,1740612642843,-150.0,0.00044828,2]
[354675816,1740612642853,-150.0,0.00044832,2]
[354675818,1740612642862,-150.0,0.00044833,2]
[354675820,1740612642871,-150.0,0.00044835,2]
[354675823,1740612642881,-150.0,0.00044839,2]
[354675825,1740612642890,-150.0,0.0004484,2]
[354675827,1740612642901,-150.0,0.0004484,2]
[354675828,1740612642910,-150.0,0.00044851,2]
[354675829,1740612642920,-150.0,0.00044853,2]
[354675830,1740612642929,-150.0,0.00044857,2]
[354675831,1740612642938,-150.0,0.00044858,2]
[354675832,1740612642947,-150.0,0.00044859,2]
[354675833,1740612642955,-150.0,0.00044862,2]
[354675834,1740612642964,-150.0,0.00044864,2]
[354675835,1740612642974,-150.0,0.00044874,2]
[354675836,1740612642983,-150.0,0.00044878,2]
[354675837,1740612642992,-150.0,0.0004488,2]
[354675838,1740612643001,-150.0,0.00044882,2]
[354675839,1740612643010,-150.0,0.00044885,2]
[354675840,1740612643018,-150.0,0.00044888,2]
[354675841,1740612643027,-150.0,0.00044894,2]
[354675842,1740612643036,-150.0,0.00044894,2]
[354675843,1740612643045,-150.0,0.00044898,2]
[354675845,1740612643055,-82594.16638479,0.000449,5]
[354675847,1740612643063,-500.0,0.000449,2]
[354675849,1740612643073,-2000.0,0.000449,120]
[354675851,1740612643082,-12740.4709,0.000449,2]
[354675853,1740612643091,-10288.5983,0.000449,2]
[354675854,1740612643100,-1000.0,0.000449,2]
[354675856,1740612643109,-7500.0,0.000449,120]
[354675858,1740612643118,-153.32,0.000449,36]
[354675860,1740612643127,-153.32,0.000449,36]
[354675862,1740612643136,-153.32,0.000449,36]
[354675864,1740612643145,-153.32,0.000449,36]
[354675866,1740612643154,-153.32,0.000449,36]
[354675868,1740612643163,-153.32,0.000449,36]
[354675870,1740612643172,-3220.61045,0.000449,52]
[354675873,1740612643182,-159.0,0.000449,51]
[354675875,1740612643191,-207.66487088,0.000449,2]
[354675877,1740612643201,-7607.86997058,0.000449,2]
[354675879,1740612643210,-200.0,0.000449,120]
[354675882,1740612643219,-384.71402438,0.000449,2]
[354675884,1740612643228,-154.35595383,0.000449,2]
[354675886,1740612643238,-150.0,0.00044901,2]
[354675888,1740612643247,-150.0,0.00044905,2]
[354675889,1740612643256,-150.0,0.00044906,2]
[354675892,1740612643266,-150.0,0.00044907,2]
[354675894,1740612643276,-150.0,0.00044909,2]
[354675895,1740612643285,-150.0,0.00044912,2]
[354675897,1740612643297,-150.0,0.00044914,2]
[354675899,1740612643307,-150.0,0.00044916,2]
[354675901,1740612643316,-150.0,0.00044918,2]
[354675903,1740612643326,-150.0,0.00044922,2]
[354675906,1740612643335,-150.0,0.00044922,2]
[354675908,1740612643344,-150.0,0.00044928,2]
[354675910,1740612643353,-150.0,0.00044932,30]
[354675912,1740612643362,-150.0,0.00044932,30]
[354675914,1740612643372,-300.0,0.00044932,30]
[354675915,1740612643382,-439.56,0.00044932,30]
[354675918,1740612643392,-150.0,0.00044933,2]
[354675920,1740612643402,-150.0,0.00044934,2]
[354675922,1740612643411,-150.0,0.00044935,2]
[354675924,1740612643420,-150.0,0.00044936,2]
[354675926,1740612643430,-150.0,0.00044936,2]
[354675928,1740612643439,-150.0,0.00044938,2]
[354675930,1740612643448,-150.0,0.0004494,2]
[354675932,1740612643458,-150.0,0.0004494,2]
[354675934,1740612643467,-150.0,0.00044943,2]
[354675936,1740612643476,-204.47806945,0.00044943,10]
[354675938,1740612643485,-150.0,0.00044949,2]
[354675940,1740612643495,-150.0,0.00044951,2]
[354675942,1740612643504,-150.0,0.00044951,2]
[354675944,1740612643514,-150.0,0.00044951,2]
[354675946,1740612643524,-150.0,0.00044961,2]
[354675948,1740612643533,-150.0,0.00044973,2]
[354675950,1740612643543,-150.0,0.00044977,2]
[354675952,1740612643553,-150.0,0.00044977,2]
[354675954,1740612643562,-150.0,0.00044979,2]
[354675956,1740612643571,-150.0,0.0004498,2]
[354675958,1740612643581,-150.0,0.00044985,2]
[354675960,1740612643590,-150.0,0.00044989,2]
[354675962,1740612643600,-300.57929529,0.0004499,7]
[354675964,1740612643610,-300.57929529,0.0004499,7]
[354675966,1740612643619,-150.0,0.00044993,2]
[354675968,1740612643628,-5582.1843427,0.00044995,2]
[354675970,1740612643638,-150.0,0.00044996,2]
[354675972,1740612643648,-148340.01036288,0.00044996,30]
[354675974,1740612643657,-1000.0,0.00044999,120]
[354675976,1740612643666,-500.0,0.00044999,120]
[354675978,1740612643675,-501.05008533,0.00044999,120]
[354675979,1740612643685,-500.0,0.00044999,120]
[354675981,1740612643697,-304.58857912,0.00044999,120]
[354675984,1740612643707,-956.04674021,0.00045,71]
[354675986,1740612643716,-149522.99127757,0.00045,52]
[354675988,1740612643725,-431629.06761389,0.00045,90]
[354675990,1740612643735,-157.9,0.00045,85]
[354675992,1740612643746,-550.0,0.00045,120]
[354675993,1740612643755,-1840.0,0.00045,60]
[354675995,1740612643764,-1547864.22088288,0.00045,90]
[354676004,1740612643840,-302.177488,0.00045,90]
[354676007,1740612643851,-6836.90084459,0.00045,90]
[354676009,1740612643863,-2159.999996,0.00045,90]
[354676022,1740612643981,-500.0,0.00036986,14]
[354676024,1740612643990,-500.0,0.0003726,14]
[354676026,1740612643999,-500.0,0.00037534,14]
[354676028,1740612644008,-154.44023751,0.00037808,14]
[354676030,1740612644017,-150.0,0.00038778,2]
[354676032,1740612644028,-150.0,0.00040616,2]
[354676034,1740612644037,-150.0,0.00041778,2]
[354676036,1740612644046,-150.0,0.00044774,2]
[354676038,1740612644055,-150.0,0.00044778,2]
[354676040,1740612644066,-141.75976249,0.00044779,2]
[354676043,1740612644077,-8.24023751,0.00044779,2]
[354676045,1740612644086,-150.0,0.00044814,2]
[354676046,1740612644095,-150.0,0.00044827,2]
[354676048,1740612644105,-150.0,0.0004485,2]
[354676050,1740612644115,-150.0,0.00044881,2]
[354676052,1740612644126,-150.0,0.00044893,2]
[354676054,1740612644139,-150.0,0.00044936,2]
[354676057,1740612644149,-150.0,0.00044978,2]
[354676058,1740612644159,-150.0,0.00044992,2]
[354676060,1740612644168,-150.0,0.00044997,2]
[354676062,1740612644177,-12446.69301646,0.00045,90]
[354676065,1740612644192,-150.0,0.00044911,2]
[354676067,1740612644201,-5178.70664685,0.00045,90]
[354676069,1740612644212,-1484802.48830758,0.00045,90]
[354676071,1740612644221,-2598.7295239,0.00045026,2]
[354676073,1740612644230,-921.68746543,0.00045118,15]
[354676075,1740612644239,-7525.04038748,0.00045118,15]
[354676077,1740612644248,-221.0,0.00045122,2]
[354676079,1740612644257,-55555.0,0.00045122,120]
[354676081,1740612644266,-151.07009628,0.0004515,20]
[354676083,1740612644275,-399.74333082,0.0004515,18]
[354676085,1740612644283,-217.0,0.0004521,30]
[354676087,1740612644293,-33850.60055847,0.00045222,10]
[354676366,1740612646560,-1398.17401673,0.00045222,10]
[354676369,1740612646578,-150.0,0.00044744,2]
[354676371,1740612646587,-100.5000001,0.00044877,2]
[354676373,1740612646598,-49.4999999,0.00044877,2]
[354676375,1740612646607,-2770.5000002,0.00045222,10]
[354676417,1740612647000,-151.28,0.0004411,30]
[354676419,1740612647010,-150.0,0.00044727,2]
[354676421,1740612647019,-150.0,0.00044727,2]
[354676423,1740612647028,-150.0,0.00044729,2]
[354676425,1740612647037,-150.0,0.00044729,2]
[354676427,1740612647046,-150.0,0.00044729,2]
[354676429,1740612647055,-150.0,0.00044734,2]
[354676431,1740612647065,-150.0,0.00044735,2]
[354676433,1740612647074,-150.0,0.00044735,2]
[354676435,1740612647083,-150.0,0.00044738,2]
[354676437,1740612647092,-150.0,0.00044743,2]
[354676439,1740612647101,-150.0,0.0004475,2]
[354676441,1740612647111,-150.0,0.0004475,2]
[354676443,1740612647119,-150.0,0.00044752,2]
[354676445,1740612647128,-150.0,0.00044752,2]
[354676447,1740612647138,-150.0,0.00044758,2]
[354676449,1740612647147,-150.0,0.00044761,2]
[354676450,1740612647156,-150.0,0.0004477,2]
[354676452,1740612647165,-150.0,0.00044772,2]
[354676454,1740612647174,-150.0,0.00044774,2]
[354676456,1740612647183,-150.0,0.00044774,2]
[354676458,1740612647193,-150.0,0.00044779,2]
[354676460,1740612647202,-150.0,0.00044785,2]
[354676462,1740612647211,-150.0,0.00044788,2]
[354676464,1740612647220,-150.0,0.00044788,2]
[354676466,1740612647230,-150.0,0.00044788,2]
[354676468,1740612647239,-150.0,0.00044788,2]
[354676470,1740612647248,-150.0,0.00044788,2]
[354676472,1740612647257,-150.0,0.0004479,2]
[354676474,1740612647266,-150.0,0.00044793,2]
[354676476,1740612647275,-150.0,0.00044794,2]
[354676478,1740612647284,-150.0,0.00044801,2]
[354676480,1740612647293,-150.0,0.00044803,2]
[354676482,1740612647303,-150.0,0.00044811,2]
[354676484,1740612647312,-150.0,0.00044824,2]
[354676486,1740612647320,-150.0,0.00044827,2]
[354676487,1740612647329,-150.0,0.00044829,2]
[354676489,1740612647338,-150.0,0.00044846,2]
[354676491,1740612647348,-150.0,0.00044852,2]
[354676494,1740612647358,-150.0,0.00044858,2]
[354676496,1740612647367,-150.0,0.0004486,2]
[354676497,1740612647376,-150.0,0.0004487,2]
[354676499,1740612647386,-150.0,0.00044873,2]
[354676501,1740612647396,-150.0,0.00044879,2]
[354676503,1740612647405,-150.0,0.00044895,2]
[354676505,1740612647414,-150.0,0.00044898,2]
[354676507,1740612647423,-150.0,0.00044899,2]
[354676509,1740612647433,-150.0,0.000449,2]
[354676512,1740612647442,-150.0,0.00044909,2]
[354676514,1740612647452,-150.0,0.00044911,2]
[354676516,1740612647461,-150.0,0.00044911,2]
[354676517,1740612647470,-150.0,0.00044912,2]
[354676519,1740612647480,-150.0,0.00044914,2]
[354676521,1740612647489,-150.0,0.00044927,2]
[354676524,1740612647502,-150.0,0.0004493,2]
[354676526,1740612647512,-150.0,0.00044931,2]
[354676528,1740612647522,-150.0,0.00044932,2]
[354676530,1740612647532,-150.0,0.00044933,2]
[354676532,1740612647542,-150.0,0.00044937,2]
[354676534,1740612647551,-150.0,0.00044937,2]
[354676536,1740612647561,-150.0,0.00044943,2]
[354676538,1740612647570,-150.0,0.00044947,2]
[354676540,1740612647580,-150.0,0.0004495,2]
[354676542,1740612647590,-150.0,0.00044951,2]
[354676544,1740612647599,-150.0,0.00044959,2]
[354676546,1740612647609,-150.0,0.00044963,2]
[354676548,1740612647618,-150.0,0.00044966,2]
[354676550,1740612647627,-150.0,0.00044966,2]
[354676552,1740612647637,-150.0,0.00044977,2]
[354676554,1740612647647,-150.0,0.00044979,2]
[354676556,1740612647656,-150.0,0.0004498,2]